[Event "Juniorallsvenskan 2019, Division 1 and 2"]
[Site "Molnlycke kulturhus, Biblioteksgatan 2, Molnlycke, Sweden"]
[Date "2019.11.24"]
[Round "4.17"]
[White "Ytterberg, Felix"]
[Black "Klosinski, Daniel"]
[Result "0-1"]
[TimeControl "90 minutes + 30 seconds per move from move one"]
[WhiteFideId "1740687"]
[BlackFideId "1726323"]
[WhiteElo "2005"]
[BlackElo "1742"]

1. d4 {[%clk 01:18:25]} {[%emt 00:12:34]} Nf6 {[%clk 01:30:57]} {[%emt
00:00:04]} 2. c4 {[%clk 01:18:43]} {[%emt 00:00:09]} c5 {[%clk 01:30:57]}
{[%emt 00:00:33]} 3. d5 {[%clk 01:18:59]} {[%emt 00:00:12]} b5 {[%clk
01:31:16]} {[%emt 00:00:13]} 4. Qc2 {[%clk 01:19:18]} {[%emt 00:00:05]} bxc4
{[%clk 01:30:10]} {[%emt 00:01:42]} 5. e4 {[%clk 01:19:27]} {[%emt 00:00:18]}
d6 {[%clk 01:30:00]} {[%emt 00:00:42]} 6. Bxc4 {[%clk 01:19:38]} {[%emt
00:00:17]} g6 {[%clk 01:29:37]} {[%emt 00:00:56]} 7. Nc3 {[%clk 01:18:54]}
{[%emt 00:01:11]} Bg7 {[%clk 01:29:55]} {[%emt 00:00:15]} 8. f4 {[%clk
01:17:27]} {[%emt 00:01:52]} O-O {[%clk 01:25:06]} {[%emt 00:05:24]} 9. Nf3
{[%clk 01:17:21]} {[%emt 00:00:30]} Nfd7 {[%clk 01:21:59]} {[%emt 00:03:43]} 10.
Bd3 {[%clk 00:28:50]} {[%emt 00:49:00]} Ba6 {[%clk 01:17:31]} {[%emt 00:04:59]}
11. g4 {[%clk 00:26:19]} {[%emt 00:02:56]} c4 {[%clk 01:11:02]} {[%emt
00:07:04]} 12. Be2 {[%clk 00:26:33]} {[%emt 00:00:15]} Nc5 {[%clk 01:10:59]}
{[%emt 00:00:34]} 13. O-O {[%clk 00:26:18]} {[%emt 00:00:43]} Nbd7 {[%clk
01:11:08]} {[%emt 00:00:23]} 14. Be3 {[%clk 00:26:19]} {[%emt 00:00:25]} e5
{[%clk 01:00:05]} {[%emt 00:11:36]} 15. fxe5 {[%clk 00:19:02]} {[%emt
00:07:46]} Nxe5 {[%clk 00:59:49]} {[%emt 00:00:47]} 16. Nxe5 {[%clk 00:18:56]}
{[%emt 00:00:36]} Bxe5 {[%clk 00:59:55]} {[%emt 00:00:24]} 17. Bxc5 {[%clk
00:19:13]} {[%emt 00:00:13]} dxc5 {[%clk 01:00:17]} {[%emt 00:00:08]} 18. Bf3
{[%clk 00:16:43]} {[%emt 00:03:00]} Qd6 {[%clk 00:58:00]} {[%emt 00:02:47]} 19.
Kh1 {[%clk 00:12:44]} {[%emt 00:04:23]} Rab8 {[%clk 00:57:57]} {[%emt
00:00:39]} 20. Rab1 {[%clk 00:09:46]} {[%emt 00:03:23]} Rb4 {[%clk 00:56:22]}
{[%emt 00:02:11]} 21. h3 {[%clk 00:08:58]} {[%emt 00:01:16]} Rfb8 {[%clk
00:55:47]} {[%emt 00:01:06]} 22. Rfe1 {[%clk 00:07:13]} {[%emt 00:02:14]} Qf6
{[%clk 00:55:46]} {[%emt 00:00:32]} 23. Bg2 {[%clk 00:05:28]} {[%emt 00:02:15]}
Qf4 {[%clk 00:51:43]} {[%emt 00:04:33]} 24. Bf1 {[%clk 00:05:05]} {[%emt
00:00:52]} Qg3 {[%clk 00:50:59]} {[%emt 00:01:15]} 25. Na4 {[%clk 00:04:44]}
{[%emt 00:00:50]} Rxa4 {[%emt 00:03:06]} 26. Re3 {[%clk 00:04:29]} {[%emt
00:00:30]} Qxe3 {[%clk 00:48:43]} {[%emt 00:00:26]} 27. Qxa4 {[%clk 00:04:50]}
{[%emt 00:00:09]} Qxe4+ {[%clk 00:48:49]} {[%emt 00:00:24]} 28. Kg1 {[%clk
00:05:00]} {[%emt 00:00:20]} Qxb1 {[%clk 00:48:21]} {[%emt 00:00:58]} 29. Qxa6
{[%clk 00:05:15]} {[%emt 00:00:15]} Bd4+ {[%clk 00:48:43]} {[%emt 00:00:08]} 30.
Kg2 {[%clk 00:05:29]} {[%emt 00:00:14]} Rxb2+ {[%clk 00:49:09]} {[%emt
00:00:06]} 31. Kg3 {[%clk 00:05:49]} {[%emt 00:00:11]} Qe1+ {[%clk 00:49:31]}
{[%emt 00:00:06]} 32. Kf4 {[%clk 00:05:52]} {[%emt 00:00:25]} Qe3# {[%clk
00:48:16]} {[%emt 00:01:48]} 0-1

[Event "Juniorallsvenskan 2019, Division 1 and 2"]
[Site "Molnlycke kulturhus, Biblioteksgatan 2, Molnlycke, Sweden"]
[Date "2019.11.24"]
[Round "4.18"]
[White "Johansson-Ohman, Linnea"]
[Black "Ivarsson, Sebastian"]
[Result "0-1"]
[TimeControl "90 minutes + 30 seconds per move from move one"]
[WhiteFideId "1737260"]
[BlackFideId "1738593"]
[WhiteElo "1660"]
[BlackElo "1969"]

1. d4 {[%clk 01:30:54]} {[%emt 00:00:05]} Nf6 {[%clk 01:29:55]} {[%emt
00:01:05]} 2. c4 {[%clk 01:31:19]} {[%emt 00:00:06]} g6 {[%clk 01:28:59]}
{[%emt 00:01:25]} 3. Nf3 {[%clk 01:31:40]} {[%emt 00:00:10]} Bg7 {[%clk
01:29:13]} {[%emt 00:00:15]} 4. g3 {[%clk 01:32:02]} {[%emt 00:00:09]} d6
{[%clk 01:29:20]} {[%emt 00:00:23]} 5. Bg2 {[%clk 01:32:17]} {[%emt 00:00:15]}
O-O {[%clk 01:29:39]} {[%emt 00:00:09]} 6. O-O {[%clk 01:32:24]} {[%emt
00:00:26]} Nc6 {[%clk 01:29:16]} {[%emt 00:00:50]} 7. Nc3 {[%clk 01:32:29]}
{[%emt 00:00:27]} a6 {[%clk 01:28:38]} {[%emt 00:01:08]} 8. b3 {[%clk
01:29:46]} {[%emt 00:03:13]} Rb8 {[%clk 01:27:42]} {[%emt 00:01:26]} 9. Bb2
{[%clk 01:29:38]} {[%emt 00:00:38]} b5 {[%clk 01:23:30]} {[%emt 00:04:42]} 10.
cxb5 {[%clk 01:29:43]} {[%emt 00:00:25]} axb5 {[%clk 01:23:36]} {[%emt
00:00:24]} 11. e3 {[%clk 01:28:58]} {[%emt 00:01:16]} Na5 {[%clk 01:19:51]}
{[%emt 00:04:14]} 12. d5 {[%clk 01:26:19]} {[%emt 00:03:09]} Ba6 {[%clk
01:08:16]} {[%emt 00:12:05]} 13. b4 {[%clk 01:26:03]} {[%emt 00:00:47]} Nc4
{[%clk 01:08:06]} {[%emt 00:00:39]} 14. Rb1 {[%clk 01:25:53]} {[%emt 00:00:39]}
Nxb2 {[%clk 01:01:17]} {[%emt 00:07:20]} 15. Rxb2 {[%clk 01:26:15]} {[%emt
00:00:10]} Ne4 {[%clk 01:00:15]} {[%emt 00:01:27]} 16. Nd4 {[%clk 01:19:09]}
{[%emt 00:07:39]} Nxc3 {[%clk 00:59:43]} {[%emt 00:01:02]} 17. Qd2 {[%clk
01:18:04]} {[%emt 00:01:35]} Bxd4 {[%clk 00:58:55]} {[%emt 00:01:17]} 18. Qxd4
{[%clk 01:16:30]} {[%emt 00:02:05]} Na4 {[%clk 00:59:16]} {[%emt 00:00:09]} 19.
Rc2 {[%clk 01:16:35]} {[%emt 00:00:25]} Nb6 {[%clk 00:59:25]} {[%emt 00:00:21]}
20. Rfc1 {[%clk 01:16:28]} {[%emt 00:00:37]} Nc4 {[%clk 00:59:28]} {[%emt
00:00:27]} 21. a4 {[%clk 01:15:49]} {[%emt 00:01:10]} bxa4 {[%clk 00:49:18]}
{[%emt 00:10:40]} 22. Rxc4 {[%clk 01:14:53]} {[%emt 00:01:26]} Bxc4 {[%clk
00:49:33]} {[%emt 00:00:15]} 23. Qxc4 {[%clk 01:15:07]} {[%emt 00:00:16]} Ra8
{[%clk 00:48:43]} {[%emt 00:01:19]} 24. Bh3 {[%clk 01:12:22]} {[%emt 00:03:16]}
a3 {[%clk 00:37:41]} {[%emt 00:11:32]} 25. Ra1 {[%clk 01:12:41]} {[%emt
00:00:11]} Qb8 {[%clk 00:34:38]} {[%emt 00:03:30]} 26. Qc3 {[%clk 01:09:50]}
{[%emt 00:03:22]} Ra4 {[%clk 00:32:02]} {[%emt 00:03:03]} 27. Rxa3 {[%clk
00:54:40]} {[%emt 00:15:44]} Qxb4 {[%clk 00:31:25]} {[%emt 00:01:07]} 28. Rb3
{[%clk 00:54:50]} {[%emt 00:00:21]} Qxc3 {[%clk 00:24:37]} {[%emt 00:07:18]} 29.
Rxc3 {[%clk 00:55:11]} {[%emt 00:00:08]} Ra7 {[%clk 00:24:54]} {[%emt
00:00:13]} 30. e4 {[%clk 00:52:00]} {[%emt 00:03:41]} Rb8 {[%clk 00:25:12]}
{[%emt 00:00:13]} 31. Rc2 {[%clk 00:51:33]} {[%emt 00:00:57]} Rb4 {[%clk
00:24:54]} {[%emt 00:00:45]} 32. f3 {[%clk 00:51:03]} {[%emt 00:01:02]} Rba4
{[%clk 00:25:18]} {[%emt 00:00:06]} 33. Bg2 {[%clk 00:48:32]} {[%emt 00:03:02]}
Ra2 {[%clk 00:25:00]} {[%emt 00:00:47]} 34. Rxa2 {[%clk 00:48:07]} {[%emt
00:00:55]} Rxa2 {[%clk 00:25:26]} {[%emt 00:00:05]} 35. h4 {[%clk 00:48:22]}
{[%emt 00:00:15]} e6 {[%clk 00:25:36]} {[%emt 00:00:19]} 36. Kh2 {[%clk
00:46:13]} {[%emt 00:02:39]} Kg7 {[%clk 00:25:42]} {[%emt 00:00:24]} 37. Kh3
{[%clk 00:45:46]} {[%emt 00:00:58]} Kf6 {[%clk 00:25:59]} {[%emt 00:00:10]} 38.
f4 {[%clk 00:45:13]} {[%emt 00:01:05]} exd5 {[%clk 00:25:36]} {[%emt 00:00:53]}
39. exd5 {[%clk 00:45:37]} {[%emt 00:00:07]} Kf5 {[%clk 00:25:51]} {[%emt
00:00:14]} 40. Bh1 {[%clk 00:40:42]} {[%emt 00:05:26]} Rf2 {[%clk 00:24:30]}
{[%emt 00:01:48]} 41. Bg2 {[%clk 00:40:01]} {[%emt 00:01:13]} Rxg2 {[%clk
00:24:11]} {[%emt 00:00:49]} 42. Kxg2 {[%clk 00:40:23]} {[%emt 00:00:09]} Ke4
{[%clk 00:24:39]} {[%emt 00:00:02]} 43. Kh3 {[%clk 00:40:17]} {[%emt 00:00:36]}
Kxd5 {[%clk 00:25:03]} {[%emt 00:00:05]} 44. h5 {[%clk 00:38:36]} {[%emt
00:02:11]} c5 {[%clk 00:24:59]} {[%emt 00:00:34]} 45. f5 {[%clk 00:38:26]}
{[%emt 00:00:40]} c4 {[%clk 00:24:36]} {[%emt 00:00:54]} 46. Kg4 {[%clk
00:38:05]} {[%emt 00:00:50]} c3 {[%clk 00:24:37]} {[%emt 00:00:29]} 47. Kg5
{[%clk 00:37:57]} {[%emt 00:00:39]} gxh5 {[%clk 00:24:42]} {[%emt 00:00:25]} 48.
Kf6 {[%clk 00:38:10]} {[%emt 00:00:16]} Ke4 {[%clk 00:24:58]} 0-1

[Event "Juniorallsvenskan 2019, Division 1 and 2"]
[Site "Molnlycke kulturhus, Biblioteksgatan 2, Molnlycke, Sweden"]
[Date "2019.11.24"]
[Round "4.19"]
[White "Dingertz, Erik"]
[Black "Elofsson, John"]
[Result "1-0"]
[TimeControl "90 minutes + 30 seconds per move from move one"]
[WhiteFideId "1741578"]
[BlackFideId "1761560"]
[WhiteElo "1892"]
[BlackElo "1334"]

1. c4 {[%clk 01:30:54]} {[%emt 00:00:05]} e5 {[%clk 01:30:54]} {[%emt
00:00:07]} 2. Nc3 {[%clk 01:30:50]} {[%emt 00:00:35]} Nf6 {[%clk 01:31:13]}
{[%emt 00:00:10]} 3. g3 {[%clk 01:31:15]} {[%emt 00:00:05]} Nc6 {[%clk
01:31:21]} {[%emt 00:00:21]} 4. Bg2 {[%clk 01:31:38]} {[%emt 00:00:06]} Bb4
{[%clk 01:31:42]} {[%emt 00:00:10]} 5. d3 {[%clk 01:31:26]} {[%emt 00:00:42]}
O-O {[%clk 01:31:55]} {[%emt 00:00:17]} 6. Bd2 {[%clk 01:31:52]} {[%emt
00:00:04]} Re8 {[%clk 01:30:42]} {[%emt 00:01:44]} 7. Nf3 {[%clk 01:30:31]}
{[%emt 00:01:50]} a5 {[%clk 01:23:01]} {[%emt 00:08:12]} 8. O-O {[%clk
01:28:28]} {[%emt 00:02:32]} d6 {[%clk 01:23:11]} {[%emt 00:00:20]} 9. a3
{[%clk 01:28:24]} {[%emt 00:00:35]} Bc5 {[%clk 01:20:18]} {[%emt 00:03:23]} 10.
Na4 {[%clk 01:26:11]} {[%emt 00:02:43]} e4 {[%clk 01:13:45]} {[%emt 00:07:03]}
11. dxe4 {[%clk 01:22:22]} {[%emt 00:04:18]} Nxe4 {[%clk 01:14:05]} {[%emt
00:00:11]} 12. Nxc5 {[%clk 01:22:48]} {[%emt 00:00:04]} Nxc5 {[%clk 01:14:25]}
{[%emt 00:00:10]} 13. b4 {[%clk 01:17:48]} {[%emt 00:05:30]} Ne4 {[%clk
00:57:56]} {[%emt 00:16:59]} 14. e3 {[%clk 01:13:44]} {[%emt 00:04:34]} Nxd2
{[%clk 00:50:19]} {[%emt 00:08:07]} 15. Qxd2 {[%clk 01:13:44]} {[%emt
00:00:30]} Be6 {[%clk 00:49:36]} {[%emt 00:01:13]} 16. Qc3 {[%clk 01:11:08]}
{[%emt 00:03:04]} axb4 {[%clk 00:48:01]} {[%emt 00:02:07]} 17. axb4 {[%clk
01:11:30]} {[%emt 00:00:07]} Qd7 {[%clk 00:48:18]} {[%emt 00:00:13]} 18. b5
{[%clk 01:09:27]} {[%emt 00:02:34]} Rxa1 {[%emt 00:04:17]} 19. Rxa1 {[%clk
01:09:29]} {[%emt 00:00:25]} Ne7 {[%clk 00:43:58]} {[%emt 00:01:06]} 20. Nd4
{[%clk 01:07:57]} {[%emt 00:02:01]} d5 {[%clk 00:41:12]} {[%emt 00:03:16]} 21.
Nxe6 {[%clk 01:03:42]} {[%emt 00:04:45]} fxe6 {[%clk 00:37:40]} {[%emt
00:04:02]} 22. Rd1 {[%clk 01:02:58]} {[%emt 00:01:14]} c6 {[%clk 00:35:29]}
{[%emt 00:02:42]} 23. e4 {[%clk 01:01:33]} {[%emt 00:01:55]} Rd8 {[%clk
00:33:59]} {[%emt 00:02:00]} 24. bxc6 {[%clk 00:59:03]} {[%emt 00:03:00]} bxc6
{[%clk 00:33:46]} {[%emt 00:00:43]} 25. Qd4 {[%emt 00:01:11]} Qc7 {[%clk
00:33:17]} {[%emt 00:00:56]} 26. cxd5 {[%clk 00:51:53]} {[%emt 00:07:01]} cxd5
{[%clk 00:33:37]} {[%emt 00:00:11]} 27. Bh3 {[%clk 00:51:59]} {[%emt 00:00:22]}
e5 {[%clk 00:28:37]} {[%emt 00:05:31]} 28. Be6+ {[%clk 00:51:25]} {[%emt
00:01:03]} Kh8 {[%clk 00:28:54]} {[%emt 00:00:14]} 29. Qd2 {[%clk 00:50:51]}
{[%emt 00:01:00]} d4 {[%clk 00:29:01]} {[%emt 00:00:28]} 30. h4 {[%clk
00:47:17]} {[%emt 00:04:03]} Rd6 {[%clk 00:24:44]} {[%emt 00:04:48]} 31. Rc1
{[%clk 00:45:59]} {[%emt 00:01:47]} Qb6 {[%clk 00:24:21]} {[%emt 00:00:52]} 32.
Bh3 {[%clk 00:44:40]} {[%emt 00:01:49]} Rc6 {[%clk 00:23:50]} {[%emt 00:01:02]}
33. Ra1 {[%clk 00:37:21]} {[%emt 00:07:49]} Qb7 {[%clk 00:22:03]} {[%emt
00:02:17]} 34. Qa5 {[%clk 00:36:59]} {[%emt 00:00:51]} Qc7 {[%clk 00:19:40]}
{[%emt 00:02:54]} 35. Qxc7 {[%clk 00:36:40]} {[%emt 00:00:49]} Rxc7 {[%clk
00:19:55]} {[%emt 00:00:16]} 36. Ra8+ {[%clk 00:37:08]} {[%emt 00:00:02]} Ng8
{[%clk 00:17:19]} {[%emt 00:03:05]} 37. Be6 {[%clk 00:37:33]} {[%emt 00:00:04]}
h6 {[%clk 00:17:29]} {[%emt 00:00:22]} 38. Rxg8+ {[%clk 00:37:11]} {[%emt
00:00:52]} Kh7 {[%clk 00:17:51]} {[%emt 00:00:08]} 39. h5 {[%clk 00:37:24]}
{[%emt 00:00:16]} Rc6 {[%clk 00:17:42]} {[%emt 00:00:40]} 40. Bd5 {[%clk
00:37:21]} {[%emt 00:00:32]} Rd6 {[%clk 00:17:57]} {[%emt 00:00:16]} 41. Rc8
{[%clk 00:37:34]} {[%emt 00:00:16]} Rb6 {[%clk 00:17:38]} {[%emt 00:00:49]} 42.
Bg8+ {[%emt 00:00:06]} Kh8 {[%clk 00:17:55]} {[%emt 00:00:11]} 43. Bf7+ {[%clk
00:38:29]} {[%emt 00:00:02]} Kh7 {[%clk 00:17:32]} {[%emt 00:00:53]} 44. Bg6+
{[%clk 00:38:56]} {[%emt 00:00:03]} Rxg6 {[%clk 00:17:54]} {[%emt 00:00:08]} 45.
hxg6+ {[%clk 00:39:22]} {[%emt 00:00:04]} Kxg6 {[%clk 00:18:18]} {[%emt
00:00:06]} 46. Kf1 {[%clk 00:39:48]} 1-0

[Event "Juniorallsvenskan 2019, Division 1 and 2"]
[Site "Molnlycke kulturhus, Biblioteksgatan 2, Molnlycke, Sweden"]
[Date "2019.11.24"]
[Round "4.20"]
[White "Saghatelyan, Frunze"]
[Black "Johansson-Ohman, Daniel"]
[Result "0-1"]
[TimeControl "90 minutes + 30 seconds per move from move one"]
[WhiteFideId "1752359"]
[BlackFideId "1736361"]
[WhiteElo "1110"]
[BlackElo "1810"]

1. d4 {[%clk 01:30:59]} f5 {[%clk 01:30:55]} {[%emt 00:00:06]} 2. g3 {[%clk
01:30:56]} {[%emt 00:00:33]} Nf6 {[%clk 01:29:32]} {[%emt 00:01:52]} 3. Bg2
{[%clk 01:31:19]} {[%emt 00:00:08]} g6 {[%clk 01:29:57]} {[%emt 00:00:05]} 4.
Nf3 {[%clk 01:31:42]} {[%emt 00:00:06]} Bg7 {[%clk 01:30:17]} {[%emt 00:00:11]}
5. O-O {[%clk 01:32:02]} {[%emt 00:00:09]} O-O {[%clk 01:30:38]} {[%emt
00:00:09]} 6. c4 {[%clk 01:32:26]} {[%emt 00:00:06]} d6 {[%clk 01:30:44]}
{[%emt 00:00:23]} 7. Nc3 {[%clk 01:32:51]} {[%emt 00:00:07]} c6 {[%clk
01:30:49]} {[%emt 00:00:24]} 8. d5 {[%clk 01:31:26]} {[%emt 00:01:54]} e5
{[%clk 01:30:43]} {[%emt 00:00:37]} 9. dxe6 {[%clk 01:27:02]} {[%emt 00:04:44]}
Bxe6 {[%clk 01:30:58]} {[%emt 00:00:25]} 10. Qb3 {[%clk 01:24:14]} {[%emt
00:03:17]} Qb6 {[%clk 01:19:06]} {[%emt 00:12:22]} 11. Be3 {[%clk 01:20:00]}
{[%emt 00:04:44]} Qxb3 {[%clk 01:17:31]} {[%emt 00:02:06]} 12. axb3 {[%clk
01:20:19]} {[%emt 00:00:07]} Na6 {[%clk 01:03:41]} {[%emt 00:14:24]} 13. Rfd1
{[%clk 01:17:34]} {[%emt 00:03:15]} Rfd8 {[%clk 01:02:40]} {[%emt 00:01:32]} 14.
Ng5 {[%clk 01:11:04]} {[%emt 00:06:59]} Bc8 {[%clk 01:02:45]} {[%emt 00:00:25]}
15. Bf4 {[%clk 01:07:24]} {[%emt 00:04:10]} h6 {[%clk 01:00:21]} {[%emt
00:02:55]} 16. Nf3 {[%clk 01:06:02]} {[%emt 00:01:51]} Ne8 {[%clk 00:59:25]}
{[%emt 00:01:27]} 17. Rd2 {[%clk 01:04:42]} {[%emt 00:01:49]} Nc5 {[%clk
00:58:38]} {[%emt 00:01:17]} 18. Rad1 {[%clk 01:01:51]} {[%emt 00:03:21]} Nxb3
{[%clk 00:58:36]} {[%emt 00:00:32]} 19. Rxd6 {[%clk 01:01:46]} {[%emt
00:00:36]} Nxd6 {[%clk 00:58:47]} {[%emt 00:00:19]} 20. Rxd6 {[%clk 01:00:32]}
{[%emt 00:01:43]} Rxd6 {[%clk 00:59:03]} {[%emt 00:00:15]} 21. Bxd6 {[%clk
01:00:52]} {[%emt 00:00:09]} Be6 {[%clk 00:58:56]} {[%emt 00:00:37]} 22. c5
{[%clk 01:00:46]} {[%emt 00:00:36]} Bf8 {[%clk 00:56:35]} {[%emt 00:02:51]} 23.
e4 {[%clk 00:59:51]} {[%emt 00:01:25]} Nxc5 {[%clk 00:56:10]} {[%emt 00:00:56]}
24. Bxf8 {[%clk 00:53:56]} {[%emt 00:06:25]} Kxf8 {[%clk 00:56:35]} {[%emt
00:00:05]} 25. Nd4 {[%clk 00:53:10]} {[%emt 00:01:15]} Rd8 {[%clk 00:51:01]}
{[%emt 00:06:04]} 26. Nce2 {[%clk 00:52:15]} {[%emt 00:01:25]} Kf7 {[%clk
00:47:58]} {[%emt 00:03:33]} 27. e5 {[%clk 00:49:02]} {[%emt 00:03:42]} Bd5
{[%clk 00:47:55]} {[%emt 00:00:34]} 28. f4 {[%clk 00:45:16]} {[%emt 00:04:16]}
Bxg2 {[%clk 00:47:30]} {[%emt 00:00:55]} 29. Kxg2 {[%clk 00:45:44]} {[%emt
00:00:02]} Ne6 {[%clk 00:47:26]} {[%emt 00:00:34]} 30. Nf3 {[%clk 00:44:54]}
{[%emt 00:01:20]} Rd3 {[%clk 00:47:14]} {[%emt 00:00:39]} 31. h3 {[%clk
00:43:52]} {[%emt 00:01:35]} Rb3 {[%clk 00:47:12]} {[%emt 00:00:25]} 32. g4
{[%clk 00:43:40]} {[%emt 00:00:49]} Rxb2 {[%clk 00:47:12]} {[%emt 00:00:30]} 33.
Kf1 {[%clk 00:43:05]} {[%emt 00:01:05]} fxg4 {[%clk 00:47:20]} {[%emt
00:00:22]} 34. hxg4 {[%clk 00:43:25]} {[%emt 00:00:10]} a5 {[%clk 00:46:18]}
{[%emt 00:01:32]} 35. f5 {[%clk 00:43:27]} {[%emt 00:00:28]} gxf5 {[%clk
00:46:20]} {[%emt 00:00:29]} 36. gxf5 {[%clk 00:43:50]} {[%emt 00:00:06]} Ng5
{[%clk 00:46:30]} {[%emt 00:00:20]} 37. Nfd4 {[%clk 00:42:48]} {[%emt
00:01:33]} a4 {[%clk 00:45:58]} {[%emt 00:01:02]} 38. e6+ {[%clk 00:41:59]}
{[%emt 00:01:19]} Ke7 {[%clk 00:44:48]} {[%emt 00:01:39]} 39. Nf4 {[%clk
00:40:00]} {[%emt 00:02:28]} a3 {[%clk 00:36:44]} {[%emt 00:08:35]} 40. Nh5
{[%clk 00:37:57]} {[%emt 00:02:33]} Ne4 {[%clk 00:35:49]} {[%emt 00:01:25]} 0-1